[Event "31st MPL National U18 Chess-ch 2022"]
[Site "Pollachi"]
[Date "2022.04.23"]
[Round "11.9"]
[White "Nawin M S"]
[Black "Mahendra Teja Mekala"]
[Result "0-1"]
[ECO "B23"]
[WhiteElo "1704"]
[BlackElo "1875"]
[Annotator "NA RC COMBH"]
[PlyCount "90"]
[EventDate "2022.04.18"]
[EventCountry "IND"]
[SourceTitle "playchess.com"]
[Source "ChessBase"]
[SourceQuality "1"]
[TimeControl "5400+30"]

{[%evp 16,89,27,27,27,22,22,25,62,47,35,30,41,37,32,27,16,32,26,14,26,-33,-27,-29,-30,-37,-34,-24,-38,-42,-31,-57,-45,-43,-49,-90,-75,-67,32767,-70,32767,32767,32767,32767,-37,-102,32767,32767,32767,32767,32767,32767,32767,32767,32767,-104,-20,-20,-24,-22,-16,-15,-15,-19,0,0,0,0,0,0,0,-14,-42,-33,-51,-40]} 1. e4 {[%emt 0:00:18]} c5 {[%emt 1:31:00]} 2. Nc3 {[%emt 0:00:25]} Nc6 {[%emt 0:00:30]} 3. Bb5 {[%emt 1:31:17]} Nd4 {[%emt 0:00:00]} 4. Nf3 Nxb5 {[%emt 0:01:00]} 5. Nxb5 {[%emt 0:01:00]} d5 {[%emt 0:00:30]} 6. exd5 {[%emt 0:00:00]} a6 {[%emt 0:00:30]} 7. Nc3 {[%emt 0:00:00]} Nf6 {[%emt 0:00:30]} 8. d4 {[%emt 0:01:30]} Nxd5 {[%emt 0:00:00]} 9. dxc5 {[%emt 0:00:30]} Nxc3 {[%emt 0:01:00]} 10. Qxd8+ {[%emt 0:01:00]} Kxd8 {[%emt 0:00:00]} 11. bxc3 {[%emt 0:00:30]} g6 {[%emt 0:01:00]} 12. Rb1 {[%emt 0:00:30]} Bg7 {[%emt 0:00:30]} 13. O-O {[%emt 0:00:30]} Bxc3 {[%emt 0:00:30]} 14. Rd1+ {[%emt 0:00:00]} Ke8 {[%emt 0:00:30]} 15. Bf4 {[%emt 0:00:00]} f6 {[%emt 0:00:30]} 16. Bc7 {[%emt 0:01:30]} Bf5 $1 {[%emt 0:00:30]} 17. Nd4 {[%emt 0:00:00]} Be4 $1 {[%emt 0:00:30]} 18. f3 {[%emt 0:00:00]} Bxd4+ {[%emt 0:00:00]} 19. Rxd4 {[%emt 0:00:00]} Bc6 $1 {[%emt 0:00:00]} 20. f4 {[%emt 0:00:00]} Kf7 {[%emt 0:01:30]} 21. Re1 {[%emt 0:02:30]} Rac8 {[%emt 0:00:30]} 22. Bb6 {[%emt 0:00:30]} h6 {[%emt 0:00:30]} 23. Red1 {[%emt 0:00:30]} g5 {[%emt 0:00:30]} 24. f5 {[%emt 0:00:30]} h5 {[%emt 0:00:30]} 25. Bd8 {[%emt 0:00:30]} (25. h3 $15) 25... h4 {[%emt 0:00:30]} 26. h3 {[%emt 0:00:30]} Be4 {[%emt 0:00:30]} 27. Bxe7 $1 {[%emt 0:00:30]} Bxc2 {[%emt 0:00:30]} 28. Re1 {[%emt 0:00:30]} Bxf5 {[%emt 0:00:30]} 29. Rd6 {[%emt 0:00:00]} Rc6 {[%emt 0:00:30]} (29... Rxc5 $2 30. Rxf6+ Kg7 31. Bxc5 $18) 30. Rxc6 (30. Bxf6 $1 $15 Rxd6 31. Bxh8) 30... bxc6 31. Bd6 {[%emt 0:01:30]} Be6 {[%emt 0:01:00]} 32. a4 {[%emt 0:00:00]} Re8 {[%emt 0:00:00]} 33. a5 {[%emt 0:01:00]} f5 {[%emt 0:01:00]} 34. Kf2 {[%emt 0:00:30]} g4 {[%emt 0:00:30]} 35. g3 {[%emt 0:00:30]} gxh3 {[%emt 0:00:00]} (35... hxg3+ $17 36. Kxg3 gxh3 37. Kxh3 Rg8) 36. gxh4 {[%emt 0:00:30]} Rh8 {[%emt 0:01:00]} 37. Kg3 $11 {[%emt 0:00:00]} h2 {[%emt 0:00:30]} 38. Rh1 {[%emt 0:01:00]} Rg8+ {[%emt 0:00:30]} 39. Kf2 {[%emt 0:00:30]} Rg4 {[%emt 0:00:30]} 40. Rxh2 {[%emt 0:00:00]} Ra4 {[%emt 0:00:30]} 41. Bc7 {[%emt 0:01:00]} Rc4 {[%emt 0:00:00]} 42. Bd6 {[%emt 0:00:30]} Rb4 {[%emt 0:01:00]} 43. Rh1 {[%emt 0:00:30]} Bd5 {[%emt 0:00:30]} 44. Rh3 {[%emt 0:00:30]} ({White should play} 44. Rh2 $17) 44... f4 {[%emt 0:00:30]} 45. Rh2 {[%emt 0:00:30]} Kg6 0-1

[Event "31st MPL National U18 Chess-ch 2022"]
[Site "Pollachi"]
[Date "2022.04.23"]
[Round "11.10"]
[White "Chidvilash Sai Surapaneni"]
[Black "Hari Ganesh T"]
[Result "1-0"]
[ECO "A18"]
[WhiteElo "1753"]
[BlackElo "1700"]
[Annotator "NA RC COMBH"]
[PlyCount "85"]
[EventDate "2022.04.18"]
[EventCountry "IND"]
[SourceTitle "playchess.com"]
[Source "ChessBase"]
[SourceQuality "1"]
[TimeControl "5400+30"]

1. c4 {[%emt 0:00:11]} Nf6 {[%emt 1:31:00]} 2. Nc3 {[%emt 1:31:19]} e6 {[%emt 0:00:30]} 3. e4 {[%emt 0:00:30]} d5 {[%emt 0:00:30]} 4. e5 {[%emt 0:00:30]} d4 {[%emt 0:00:30]} 5. exf6 {[%emt 0:00:00]} dxc3 {[%emt 0:00:00]} 6. bxc3 {[%emt 0:00:00]} Qxf6 {[%emt 0:00:00]} 7. d4 {[%emt 0:00:00]} c5 {[%emt 0:00:00]} 8. Nf3 {[%emt 0:00:00]} h6 {[%emt 0:00:00]} 9. Bd3 {[%emt 0:00:00]} cxd4 {[%emt 0:00:00]} 10. cxd4 {[%emt 0:00:00]} Bb4+ {[%emt 0:00:00]} 11. Kf1 {[%emt 0:00:00]} Bc3 {[%emt 0:00:00]} 12. Rb1 {[%emt 0:00:00]} Nc6 {[%emt 0:04:00]} 13. Be4 {[%emt 0:04:30]} O-O {[%emt 0:00:30]} 14. Qd3 {[%emt 0:00:30]} Ba5 {[%emt 0:00:30]} 15. Be3 {[%emt 0:00:30]} e5 {[%emt 0:00:30]} 16. d5 {[%emt 0:00:00]} Nb4 {[%emt 0:00:30]} 17. Qa3 {[%emt 0:00:00]} Bf5 {[%emt 0:00:30]} 18. Qxa5 {[%emt 0:00:00]} Bxe4 {[%emt 0:00:30]} 19. Qxb4 {[%emt 0:00:00]} Bxb1 {[%emt 0:00:00]} 20. Qxb1 {[%emt 0:00:00]} Qa6 {[%emt 0:00:00]} 21. Nd2 {[%emt 0:00:00]} f5 {[%emt 0:00:00]} 22. f3 {[%emt 0:00:00]} Rad8 {[%emt 0:00:00]} 23. Kf2 {[%emt 0:00:00]} b6 {[%emt 0:00:00]} 24. g3 {[%emt 0:00:00]} b5 {[%emt 0:00:00]} 25. Bc5 {[%emt 0:00:00]} Rf7 {[%emt 0:00:00]} 26. d6 {[%emt 0:00:00]} bxc4 {[%emt 0:00:00]} 27. Rc1 {[%emt 0:00:00]} Qa5 {[%emt 0:04:30]} 28. Qb4 {[%emt 0:00:00]} Qxa2 {[%emt 0:00:00]} 29. Kg1 {[%emt 0:00:00]} a5 {[%emt 0:00:00]} 30. Qc3 {[%emt 0:00:00]} Rb8 {[%emt 0:00:00]} 31. Nxc4 {[%emt 0:00:00]} Rfb7 {[%emt 0:00:00]} 32. Nb6 {[%emt 0:00:00]} Qe6 {[%emt 0:00:00]} 33. Qxa5 {[%emt 0:02:04]} e4 {[%emt 0:00:00]} 34. Re1 {[%emt 0:00:14]} Qb3 {[%emt 0:00:00]} 35. d7 {[%emt 0:03:17]} exf3 {[%emt 0:00:00]} 36. Bf2 {[%emt 0:02:49]} Qd3 {[%emt 0:00:00]} 37. Qe5 {[%emt 0:00:33]} Rf8 {[%emt 0:00:00]} 38. Qe6+ {[%emt 0:00:13]} Kh7 {[%emt 0:00:00]} 39. Qe8 {[%emt 0:00:46]} Rb8 {[%emt 0:00:00]} 40. Nc8 {[%emt 0:00:06]} Kg8 {[%emt 0:00:00]} 41. Bc5 {[%emt 0:00:38]} f2+ {[%emt 0:00:00]} 42. Bxf2 {[%emt 0:00:32]} Qd2 {[%emt 0:00:00]} 43. Bc5 {[%emt 0:01:17]} 1-0